[Event "Titled Tuesday Blitz November 01 Late 2022"]
[White "Tayar, Jonathan"]
[Black "Azarov, Sergei"]
[WhiteFideId "2606534"]
[BlackFideId "13501470"]
[WhiteElo "2406"]
[BlackElo "2494"]
[Result "0-1"]
[Round "10"]
[TimeControl "180+1"]
[Date "2022.11.01"]
[WhiteClock "0:00:27"]
[BlackClock "0:01:18"]

1. e4 {[%clk 0:03:00]}  c5 {[%clk 0:02:56]} 2. Nc3 {[%clk 0:02:59]}  d6 {[%clk 0:02:54]} 3. Nf3 {[%clk 0:02:59]}  Nf6 {[%clk 0:02:47]} 4. d4 {[%clk 0:03:00]}  cxd4 {[%clk 0:02:47]} 5. Nxd4 {[%clk 0:03:01]}  g6 {[%clk 0:02:47]} 6. Be3 {[%clk 0:03:00]}  Bg7 {[%clk 0:02:47]} 7. f3 {[%clk 0:03:00]}  O-O {[%clk 0:02:48]} 8. Qd2 {[%clk 0:03:00]}  Nc6 {[%clk 0:02:49]} 9. O-O-O {[%clk 0:03:01]}  d5 {[%clk 0:02:49]} 10. exd5 {[%clk 0:03:02]}  Nxd5 {[%clk 0:02:49]} 11. Nxc6 {[%clk 0:03:02]}  bxc6 {[%clk 0:02:49]} 12. Bd4 {[%clk 0:03:03]}  e5 {[%clk 0:02:49]} 13. Bc5 {[%clk 0:03:03]}  Be6 {[%clk 0:02:49]} 14. Ne4 {[%clk 0:03:03]}  Re8 {[%clk 0:02:46]} 15. g4 {[%clk 0:03:03]}  Qc7 {[%clk 0:02:45]} 16. Bd6 {[%clk 0:03:02]}  Qb6 {[%clk 0:02:43]} 17. Bc5 {[%clk 0:03:02]}  Qc7 {[%clk 0:02:43]} 18. Bd6 {[%clk 0:03:00]}  Qd7 {[%clk 0:02:26]} 19. Ba3 {[%clk 0:02:54]}  Rad8 {[%clk 0:02:23]} 20. Nc5 {[%clk 0:02:50]}  Qc7 {[%clk 0:02:18]} 21. Nxe6 {[%clk 0:02:43]}  Rxe6 {[%clk 0:01:44]} 22. c4 {[%clk 0:02:35]}  e4 {[%clk 0:01:44]} 23. fxe4 {[%clk 0:02:14]}  Be5 {[%clk 0:01:23]} 24. exd5 {[%clk 0:00:56]}  Bf4 {[%clk 0:01:21]} 25. dxe6 {[%clk 0:00:57]}  Rxd2 {[%clk 0:01:20]} 26. Rxd2 {[%clk 0:00:57]}  Qa5 {[%clk 0:01:19]} 27. exf7+ {[%clk 0:00:27]}  Kxf7 {[%clk 0:01:18]} 0-1


[Site "https://www.chess.com"]

[Event "Titled Tuesday Blitz November 01 Late 2022"]
[White "Tokhirjonova, Gulrukhbegim"]
[Black "Hoffmann, Asa"]
[WhiteFideId "14203626"]
[BlackFideId "2001470"]
[WhiteElo "2236"]
[BlackElo "2117"]
[Result "1-0"]
[Round "10"]
[TimeControl "180+1"]
[Date "2022.11.02"]
[WhiteClock "0:01:18"]
[BlackClock "0:01:04"]

1. Nf3 {[%clk 0:03:00]}  d6 {[%clk 0:02:58]} 2. d4 {[%clk 0:03:00]}  Bg4 {[%clk 0:02:56]} 3. e4 {[%clk 0:02:58]}  Nf6 {[%clk 0:02:54]} 4. Nc3 {[%clk 0:02:58]}  c6 {[%clk 0:02:53]} 5. Be2 {[%clk 0:02:58]}  e6 {[%clk 0:02:53]} 6. Be3 {[%clk 0:02:58]}  d5 {[%clk 0:02:53]} 7. e5 {[%clk 0:02:58]}  Nfd7 {[%clk 0:02:52]} 8. O-O {[%clk 0:02:58]}  c5 {[%clk 0:02:52]} 9. Nb5 {[%clk 0:02:56]}  cxd4 {[%clk 0:02:50]} 10. Nbxd4 {[%clk 0:02:41]}  Nc6 {[%clk 0:02:49]} 11. Bb5 {[%clk 0:02:41]}  Rc8 {[%clk 0:02:43]} 12. c3 {[%clk 0:02:17]}  Be7 {[%clk 0:02:41]} 13. Qa4 {[%clk 0:02:14]}  Qc7 {[%clk 0:02:25]} 14. Nxc6 {[%clk 0:02:06]}  bxc6 {[%clk 0:02:23]} 15. Ba6 {[%clk 0:02:06]}  Rb8 {[%clk 0:02:22]} 16. Qxg4 {[%clk 0:02:05]}  O-O {[%clk 0:02:13]} 17. b3 {[%clk 0:02:01]}  Qa5 {[%clk 0:02:09]} 18. Be2 {[%clk 0:01:51]}  Qxc3 {[%clk 0:02:07]} 19. Rac1 {[%clk 0:01:50]}  Qb2 {[%clk 0:02:06]} 20. Bd3 {[%clk 0:01:46]}  c5 {[%clk 0:01:59]} 21. Bg5 {[%clk 0:01:40]}  Bxg5 {[%clk 0:01:49]} 22. Bxh7+ {[%clk 0:01:26]}  Kxh7 {[%clk 0:01:46]} 23. Nxg5+ {[%clk 0:01:26]}  Kg8 {[%clk 0:01:14]} 24. Qh5 {[%clk 0:01:25]}  Rfd8 {[%clk 0:01:08]} 25. Qxf7+ {[%clk 0:01:23]}  Kh8 {[%clk 0:01:07]} 26. Qh5+ {[%clk 0:01:17]}  Kg8 {[%clk 0:01:07]} 27. Qh7+ {[%clk 0:01:17]}  Kf8 {[%clk 0:01:06]} 28. Qh8+ {[%clk 0:01:17]}  Ke7 {[%clk 0:01:05]} 29. Qxg7+ {[%clk 0:01:18]}  Ke8 {[%clk 0:01:04]} 30. Qf7# {[%clk 0:01:18]} 1-0


[Site "https://www.chess.com"]

[Event "Titled Tuesday Blitz November 01 Late 2022"]
[White "Valdes Romero, Leonardo"]
[Black "Przybylski, Wojciech"]
[WhiteFideId "6500331"]
[BlackFideId "1117599"]
[WhiteElo "2494"]
[BlackElo "2221"]
[Result "0-1"]
[Round "10"]
[TimeControl "180+1"]
[Date "2022.11.02"]
[WhiteClock "0:00:02"]
[BlackClock "0:00:07"]

1. Nf3 {[%clk 0:03:00]}  Nf6 {[%clk 0:02:47]} 2. d3 {[%clk 0:03:00]}  d5 {[%clk 0:02:44]} 3. g3 {[%clk 0:03:01]}  c6 {[%clk 0:02:42]} 4. Bg2 {[%clk 0:03:02]}  Bg4 {[%clk 0:02:41]} 5. O-O {[%clk 0:03:03]}  Nbd7 {[%clk 0:02:41]} 6. Nbd2 {[%clk 0:03:03]}  e6 {[%clk 0:02:40]} 7. h3 {[%clk 0:03:03]}  Bh5 {[%clk 0:02:39]} 8. Qe1 {[%clk 0:03:03]}  Bc5 {[%clk 0:02:38]} 9. e4 {[%clk 0:03:03]}  O-O {[%clk 0:02:37]} 10. Kh1 {[%clk 0:03:03]}  h6 {[%clk 0:02:28]} 11. Ng1 {[%clk 0:03:01]}  e5 {[%clk 0:02:25]} 12. f4 {[%clk 0:02:59]}  dxe4 {[%clk 0:02:20]} 13. Nxe4 {[%clk 0:02:55]}  Nxe4 {[%clk 0:02:18]} 14. dxe4 {[%clk 0:02:55]}  exf4 {[%clk 0:02:14]} 15. gxf4 {[%clk 0:02:54]}  Re8 {[%clk 0:02:11]} 16. Qg3 {[%clk 0:02:50]}  Bd6 {[%clk 0:02:01]} 17. e5 {[%clk 0:02:46]}  Bc7 {[%clk 0:02:00]} 18. Bf3 {[%clk 0:02:33]}  Bxf3+ {[%clk 0:01:58]} 19. Nxf3 {[%clk 0:02:34]}  Qe7 {[%clk 0:01:53]} 20. Nh4 {[%clk 0:02:29]}  Qe6 {[%clk 0:01:49]} 21. Rg1 {[%clk 0:02:21]}  g6 {[%clk 0:01:49]} 22. Be3 {[%clk 0:02:01]}  Rad8 {[%clk 0:01:33]} 23. Rae1 {[%clk 0:01:56]}  Nf8 {[%clk 0:01:28]} 24. Bc5 {[%clk 0:01:47]}  Qd5+ {[%clk 0:01:27]} 25. Rg2 {[%clk 0:01:41]}  Qxc5 {[%clk 0:01:26]} 26. e6 {[%clk 0:01:35]}  Qd5 {[%clk 0:00:47]} 27. e7 {[%clk 0:01:21]}  Rc8 {[%clk 0:00:40]} 28. exf8=Q+ {[%clk 0:01:18]}  Kxf8 {[%clk 0:00:39]} 29. Rf1 {[%clk 0:00:52]}  Re2 {[%clk 0:00:28]} 30. Qg4 {[%clk 0:00:37]}  Rce8 {[%clk 0:00:26]} 31. f5 {[%clk 0:00:23]}  g5 {[%clk 0:00:19]} 32. Nf3 {[%clk 0:00:17]}  R8e4 {[%clk 0:00:16]} 33. Qh5 {[%clk 0:00:15]}  Rxg2 {[%clk 0:00:16]} 34. Qxh6+ {[%clk 0:00:14]}  Ke8 {[%clk 0:00:16]} 35. Qh8+ {[%clk 0:00:08]}  Kd7 {[%clk 0:00:15]} 36. Kxg2 {[%clk 0:00:08]}  Qxf5 {[%clk 0:00:13]} 37. Qc3 {[%clk 0:00:05]}  Qf4 {[%clk 0:00:10]} 38. Rd1+ {[%clk 0:00:04]}  Bd6 {[%clk 0:00:10]} 39. Qd3 {[%clk 0:00:03]}  Qg3+ {[%clk 0:00:10]} 40. Kf1 {[%clk 0:00:04]}  Qxh3+ {[%clk 0:00:08]} 41. Kf2 {[%clk 0:00:03]}  Qg3+ {[%clk 0:00:08]} 42. Kf1 {[%clk 0:00:03]}  g4 {[%clk 0:00:08]} 43. Ne5+ {[%clk 0:00:02]}  Qxe5 {[%clk 0:00:07]} 0-1


[Site "https://www.chess.com"]

[Event "Titled Tuesday Blitz November 01 Late 2022"]
[White "Van Osch, Mees"]
[Black "Floresvillar Gonzalez, Luis Migu"]
[WhiteFideId "1035967"]
[BlackFideId "5100542"]
[WhiteElo "2324"]
[BlackElo "2040"]
[Result "0-1"]
[Round "10"]
[TimeControl "180+1"]
[Date "2022.11.02"]
[WhiteClock "0:00:11"]
[BlackClock "0:00:23"]

1. e4 {[%clk 0:02:57]}  c6 {[%clk 0:03:00]} 2. d4 {[%clk 0:02:56]}  d5 {[%clk 0:03:00]} 3. Nc3 {[%clk 0:02:57]}  dxe4 {[%clk 0:02:59]} 4. Nxe4 {[%clk 0:02:58]}  Bf5 {[%clk 0:02:59]} 5. Ng3 {[%clk 0:02:57]}  Bg6 {[%clk 0:03:00]} 6. h4 {[%clk 0:02:51]}  h6 {[%clk 0:03:00]} 7. h5 {[%clk 0:02:50]}  Bh7 {[%clk 0:02:59]} 8. Bd3 {[%clk 0:02:51]}  Bxd3 {[%clk 0:02:59]} 9. Qxd3 {[%clk 0:02:51]}  Nd7 {[%clk 0:02:57]} 10. Nf3 {[%clk 0:02:48]}  Ngf6 {[%clk 0:02:56]} 11. Bd2 {[%clk 0:02:47]}  e6 {[%clk 0:02:56]} 12. O-O-O {[%clk 0:02:47]}  Qb6 {[%clk 0:02:55]} 13. Kb1 {[%clk 0:02:47]}  O-O-O {[%clk 0:02:55]} 14. Ne4 {[%clk 0:02:47]}  Bb4 {[%clk 0:02:49]} 15. c3 {[%clk 0:02:47]}  Ba3 {[%clk 0:02:44]} 16. Bc1 {[%clk 0:02:47]}  Be7 {[%clk 0:02:39]} 17. Ned2 {[%clk 0:02:38]}  Rhe8 {[%clk 0:02:34]} 18. Nc4 {[%clk 0:02:38]}  Qc7 {[%clk 0:02:33]} 19. Nce5 {[%clk 0:02:37]}  Nxe5 {[%clk 0:02:32]} 20. Nxe5 {[%clk 0:02:36]}  Bd6 {[%clk 0:02:29]} 21. f4 {[%clk 0:02:34]}  Nd5 {[%clk 0:02:24]} 22. g3 {[%clk 0:02:30]}  f6 {[%clk 0:02:13]} 23. Ng6 {[%clk 0:02:28]}  f5 {[%clk 0:02:12]} 24. Rhe1 {[%clk 0:02:05]}  Qf7 {[%clk 0:02:12]} 25. Re2 {[%clk 0:01:56]}  Nf6 {[%clk 0:02:11]} 26. Rh1 {[%clk 0:01:54]}  Nxh5 {[%clk 0:02:09]} 27. Rxh5 {[%clk 0:01:46]}  Qxg6 {[%clk 0:02:08]} 28. Rh1 {[%clk 0:01:47]}  a6 {[%clk 0:01:58]} 29. Rhe1 {[%clk 0:01:45]}  Re7 {[%clk 0:01:58]} 30. c4 {[%clk 0:01:42]}  Qh5 {[%clk 0:01:46]} 31. Rxe6 {[%clk 0:01:40]}  Rxe6 {[%clk 0:01:44]} 32. Rxe6 {[%clk 0:01:41]}  Qg4 {[%clk 0:01:26]} 33. a3 {[%clk 0:01:26]}  h5 {[%clk 0:01:18]} 34. d5 {[%clk 0:01:17]}  cxd5 {[%clk 0:01:13]} 35. Qxd5 {[%clk 0:01:12]}  Bc7 {[%clk 0:01:10]} 36. Qc5 {[%clk 0:01:06]}  Qxg3 {[%clk 0:00:57]} 37. Re7 {[%clk 0:00:57]}  Qd3+ {[%clk 0:00:56]} 38. Ka2 {[%clk 0:00:48]}  Rd7 {[%clk 0:00:49]} 39. Re8+ {[%clk 0:00:41]}  Rd8 {[%clk 0:00:48]} 40. Re7 {[%clk 0:00:35]}  Qd6 {[%clk 0:00:41]} 41. Qxf5+ {[%clk 0:00:34]}  Kb8 {[%clk 0:00:39]} 42. Rxg7 {[%clk 0:00:29]}  Rf8 {[%clk 0:00:33]} 43. Qd5 {[%clk 0:00:23]}  Qxd5 {[%clk 0:00:30]} 44. cxd5 {[%clk 0:00:23]}  Bxf4 {[%clk 0:00:30]} 45. Rh7 {[%clk 0:00:20]}  Bxc1 {[%clk 0:00:28]} 46. Rxh5 {[%clk 0:00:20]}  Rf2 {[%clk 0:00:28]} 47. Kb3 {[%clk 0:00:16]}  Rxb2+ {[%clk 0:00:27]} 48. Ka4 {[%clk 0:00:16]}  Bd2 {[%clk 0:00:24]} 49. d6 {[%clk 0:00:10]}  b5+ {[%clk 0:00:23]} 50. Rxb5+ {[%clk 0:00:11]}  axb5# {[%clk 0:00:23]} 0-1


[Site "https://www.chess.com"]

[Event "Titled Tuesday Blitz November 01 Late 2022"]
[White "Winterberg, Lukas"]
[Black "Kanyamarala, Tarun"]
[WhiteFideId "24622702"]
[BlackFideId "45004714"]
[WhiteElo "2349"]
[BlackElo "2307"]
[Result "0-1"]
[Round "10"]
[TimeControl "180+1"]
[Date "2022.11.02"]
[WhiteClock "0:01:17"]
[BlackClock "0:01:37"]

1. Nc3 {[%clk 0:03:00]}  c5 {[%clk 0:02:45]} 2. e4 {[%clk 0:02:58]}  e6 {[%clk 0:02:40]} 3. f4 {[%clk 0:02:55]}  d5 {[%clk 0:02:39]} 4. Nf3 {[%clk 0:02:51]}  d4 {[%clk 0:02:38]} 5. Ne2 {[%clk 0:02:49]}  Nc6 {[%clk 0:02:32]} 6. d3 {[%clk 0:02:48]}  h5 {[%clk 0:02:30]} 7. c3 {[%clk 0:02:46]}  dxc3 {[%clk 0:02:26]} 8. bxc3 {[%clk 0:02:45]}  c4 {[%clk 0:02:25]} 9. d4 {[%clk 0:02:44]}  Nf6 {[%clk 0:02:25]} 10. Qc2 {[%clk 0:02:40]}  b6 {[%clk 0:02:22]} 11. Ne5 {[%clk 0:02:37]}  Na5 {[%clk 0:02:19]} 12. Ng1 {[%clk 0:02:28]}  Bb7 {[%clk 0:02:17]} 13. Nxc4 {[%clk 0:02:19]}  Bxe4 {[%clk 0:02:16]} 14. Bd3 {[%clk 0:02:02]}  Bxd3 {[%clk 0:02:02]} 15. Qxd3 {[%clk 0:02:03]}  Nxc4 {[%clk 0:02:01]} 16. Qxc4 {[%clk 0:02:02]}  Qd5 {[%clk 0:02:02]} 17. Qe2 {[%clk 0:01:55]}  Ne4 {[%clk 0:01:52]} 18. Bd2 {[%clk 0:01:52]}  Rc8 {[%clk 0:01:49]} 19. Rc1 {[%clk 0:01:46]}  Ba3 {[%clk 0:01:44]} 20. Rc2 {[%clk 0:01:44]}  Bb4 {[%clk 0:01:44]} 21. c4 {[%clk 0:01:32]}  Bxd2+ {[%clk 0:01:42]} 22. Rxd2 {[%clk 0:01:20]}  Rxc4 {[%clk 0:01:41]} 23. Nf3 {[%clk 0:01:19]}  Nxd2 {[%clk 0:01:39]} 24. Qxd2 {[%clk 0:01:17]}  Qe4+ {[%clk 0:01:37]} 25. Kf2 {[%clk 0:01:17]}  Rc2 {[%clk 0:01:37]} 0-1


[Site "https://www.chess.com"]

[Event "Titled Tuesday Blitz November 01 Late 2022"]
[White "Young, Ryan"]
[Black "Perske, Thore"]
[WhiteFideId "2049945"]
[BlackFideId "12902195"]
[WhiteElo "2409"]
[BlackElo "2336"]
[Result "0-1"]
[Round "10"]
[TimeControl "180+1"]
[Date "2022.11.02"]
[WhiteClock "0:00:15"]
[BlackClock "0:00:09"]

1. e4 {[%clk 0:02:54]}  e6 {[%clk 0:02:58]} 2. d4 {[%clk 0:02:53]}  d5 {[%clk 0:02:58]} 3. Nc3 {[%clk 0:02:52]}  Nf6 {[%clk 0:02:58]} 4. e5 {[%clk 0:02:52]}  Nfd7 {[%clk 0:02:58]} 5. f4 {[%clk 0:02:53]}  c5 {[%clk 0:02:58]} 6. Nce2 {[%clk 0:02:53]}  Nc6 {[%clk 0:02:59]} 7. c3 {[%clk 0:02:53]}  Qb6 {[%clk 0:02:57]} 8. Nf3 {[%clk 0:02:52]}  cxd4 {[%clk 0:02:50]} 9. cxd4 {[%clk 0:02:49]}  Bb4+ {[%clk 0:02:51]} 10. Nc3 {[%clk 0:02:40]}  f6 {[%clk 0:02:47]} 11. Be2 {[%clk 0:02:32]}  O-O {[%clk 0:02:40]} 12. Qd3 {[%clk 0:02:20]}  fxe5 {[%clk 0:01:50]} 13. fxe5 {[%clk 0:02:16]}  Rxf3 {[%clk 0:01:49]} 14. Bxf3 {[%clk 0:02:02]}  Qxd4 {[%clk 0:01:46]} 15. Qxd4 {[%clk 0:01:53]}  Nxd4 {[%clk 0:01:47]} 16. O-O {[%clk 0:01:49]}  Nxe5 {[%clk 0:01:39]} 17. a3 {[%clk 0:01:07]}  Nexf3+ {[%clk 0:01:25]} 18. gxf3 {[%clk 0:01:06]}  Bxc3 {[%clk 0:01:03]} 19. bxc3 {[%clk 0:01:07]}  Ne2+ {[%clk 0:01:03]} 20. Kf2 {[%clk 0:01:07]}  Nxc3 {[%clk 0:01:04]} 21. Bb2 {[%clk 0:01:07]}  Na4 {[%clk 0:01:02]} 22. Bd4 {[%clk 0:01:06]}  Bd7 {[%clk 0:00:57]} 23. Rg1 {[%clk 0:01:04]}  g6 {[%clk 0:00:54]} 24. Rac1 {[%clk 0:01:05]}  Bc6 {[%clk 0:00:53]} 25. h4 {[%clk 0:01:03]}  Nb6 {[%clk 0:00:19]} 26. h5 {[%clk 0:01:03]}  Kf7 {[%clk 0:00:17]} 27. hxg6+ {[%clk 0:01:03]}  hxg6 {[%clk 0:00:18]} 28. Rh1 {[%clk 0:01:02]}  Rf8 {[%clk 0:00:17]} 29. Rh7+ {[%clk 0:01:01]}  Ke8 {[%clk 0:00:16]} 30. Rch1 {[%clk 0:00:59]}  Rf7 {[%clk 0:00:15]} 31. Rh8+ {[%clk 0:00:56]}  Kd7 {[%clk 0:00:14]} 32. Bc5 {[%clk 0:00:32]}  Nc4 {[%clk 0:00:14]} 33. Bxa7 {[%clk 0:00:28]}  e5 {[%clk 0:00:14]} 34. Bc5 {[%clk 0:00:24]}  e4 {[%clk 0:00:13]} 35. R8h7 {[%clk 0:00:24]}  Rxh7 {[%clk 0:00:10]} 36. Rxh7+ {[%clk 0:00:24]}  Ke6 {[%clk 0:00:11]} 37. fxe4 {[%clk 0:00:24]}  dxe4 {[%clk 0:00:11]} 38. Ke2 {[%clk 0:00:20]}  Ne5 {[%clk 0:00:10]} 39. Rh8 {[%clk 0:00:16]}  Kd5 {[%clk 0:00:11]} 40. Be3 {[%clk 0:00:16]}  Nf3 {[%clk 0:00:11]} 41. Rd8+ {[%clk 0:00:16]}  Kc4 {[%clk 0:00:11]} 42. Rg8 {[%clk 0:00:16]}  Ne5 {[%clk 0:00:09]} 43. Bf4 {[%clk 0:00:15]}  Nd3 {[%clk 0:00:09]} 44. Rxg6 {[%clk 0:00:15]}  Nxf4+ {[%clk 0:00:09]} 0-1


[Site "https://www.chess.com"]

[Event "Titled Tuesday Blitz November 01 Late 2022"]
[White "Ali Abdullahi, Farah"]
[Black "Simonovic, Miroslav"]
[WhiteFideId "16100212"]
[BlackFideId "919152"]
[WhiteElo "2273"]
[BlackElo "2043"]
[Result "1-0"]
[Round "11"]
[TimeControl "180+1"]
[Date "2022.11.02"]
[WhiteClock "0:01:19"]
[BlackClock "0:00:09"]

1. d4 {[%clk 0:02:59]}  Nf6 {[%clk 0:02:59]} 2. Nf3 {[%clk 0:02:59]}  c5 {[%clk 0:02:59]} 3. c4 {[%clk 0:03:00]}  b6 {[%clk 0:02:59]} 4. Nc3 {[%clk 0:03:00]}  Bb7 {[%clk 0:02:59]} 5. d5 {[%clk 0:02:59]}  d6 {[%clk 0:02:58]} 6. e4 {[%clk 0:02:59]}  Nbd7 {[%clk 0:02:58]} 7. Bg5 {[%clk 0:02:59]}  g6 {[%clk 0:02:58]} 8. Bxf6 {[%clk 0:03:00]}  Nxf6 {[%clk 0:02:58]} 9. Bd3 {[%clk 0:03:01]}  Bg7 {[%clk 0:02:58]} 10. O-O {[%clk 0:03:01]}  O-O {[%clk 0:02:58]} 11. Re1 {[%clk 0:03:02]}  e5 {[%clk 0:02:58]} 12. Rc1 {[%clk 0:03:02]}  h6 {[%clk 0:02:56]} 13. a3 {[%clk 0:03:03]}  Nh7 {[%clk 0:02:42]} 14. b4 {[%clk 0:03:01]}  f5 {[%clk 0:02:38]} 15. exf5 {[%clk 0:02:59]}  gxf5 {[%clk 0:02:37]} 16. Bf1 {[%clk 0:02:56]}  e4 {[%clk 0:02:29]} 17. Nd2 {[%clk 0:02:53]}  Qf6 {[%clk 0:02:16]} 18. g3 {[%clk 0:02:37]}  Rae8 {[%clk 0:02:14]} 19. Bg2 {[%clk 0:02:34]}  Qd4 {[%clk 0:01:49]} 20. Ne2 {[%clk 0:02:30]}  Qb2 {[%clk 0:01:43]} 21. bxc5 {[%clk 0:02:19]}  dxc5 {[%clk 0:01:40]} 22. Nf4 {[%clk 0:02:13]}  Ng5 {[%clk 0:01:30]} 23. h4 {[%clk 0:02:11]}  Nf3+ {[%clk 0:01:30]} 24. Nxf3 {[%clk 0:02:07]}  exf3 {[%clk 0:01:31]} 25. Qxf3 {[%clk 0:02:06]}  Rxe1+ {[%clk 0:00:55]} 26. Rxe1 {[%clk 0:02:05]}  Bc8 {[%clk 0:00:51]} 27. Re7 {[%clk 0:01:55]}  a6 {[%clk 0:00:30]} 28. Ne6 {[%clk 0:01:45]}  Bxe6 {[%clk 0:00:29]} 29. dxe6 {[%clk 0:01:46]}  Bd4 {[%clk 0:00:20]} 30. Qh5 {[%clk 0:01:25]}  Qxf2+ {[%clk 0:00:18]} 31. Kh2 {[%clk 0:01:25]}  Rf6 {[%clk 0:00:09]} 32. Qe8+ {[%clk 0:01:19]} 1-0


[Site "https://www.chess.com"]

[Event "Titled Tuesday Blitz November 01 Late 2022"]
[White "Averjanov, Alexey"]
[Black "Soto Vega, Jorge"]
[WhiteFideId "14109867"]
[BlackFideId "3800580"]
[WhiteElo "2637"]
[BlackElo "2263"]
[Result "0-1"]
[Round "11"]
[TimeControl "180+1"]
[Date "2022.11.02"]
[WhiteClock "0:01:58"]
[BlackClock "0:01:43"]

1. d4 {[%clk 0:02:59]}  d5 {[%clk 0:02:59]} 2. c4 {[%clk 0:02:55]}  c6 {[%clk 0:02:58]} 3. e3 {[%clk 0:02:55]}  Nf6 {[%clk 0:02:58]} 4. Bd3 {[%clk 0:02:54]}  a6 {[%clk 0:02:55]} 5. Nd2 {[%clk 0:02:52]}  b5 {[%clk 0:02:53]} 6. b3 {[%clk 0:02:51]}  Bg4 {[%clk 0:02:51]} 7. Qc2 {[%clk 0:02:49]}  e6 {[%clk 0:02:50]} 8. Ngf3 {[%clk 0:02:49]}  Nbd7 {[%clk 0:02:47]} 9. Bb2 {[%clk 0:02:48]}  Bh5 {[%clk 0:02:45]} 10. O-O {[%clk 0:02:48]}  Bg6 {[%clk 0:02:44]} 11. e4 {[%clk 0:02:47]}  bxc4 {[%clk 0:02:41]} 12. bxc4 {[%clk 0:02:47]}  Rb8 {[%clk 0:02:41]} 13. Bc3 {[%clk 0:02:46]}  dxe4 {[%clk 0:02:34]} 14. Nxe4 {[%clk 0:02:47]}  Be7 {[%clk 0:02:34]} 15. Rad1 {[%clk 0:02:45]}  O-O {[%clk 0:02:32]} 16. Ne5 {[%clk 0:02:43]}  Qc7 {[%clk 0:02:27]} 17. Nxg6 {[%clk 0:02:42]}  hxg6 {[%clk 0:02:27]} 18. h3 {[%clk 0:02:41]}  Bb4 {[%clk 0:02:24]} 19. Ba1 {[%clk 0:02:39]}  Rfd8 {[%clk 0:02:22]} 20. Nxf6+ {[%clk 0:02:37]}  Nxf6 {[%clk 0:02:21]} 21. g3 {[%clk 0:02:35]}  Bd6 {[%clk 0:02:17]} 22. Kg2 {[%clk 0:02:34]}  Be7 {[%clk 0:02:14]} 23. Be2 {[%clk 0:02:33]}  Qa5 {[%clk 0:02:05]} 24. Bf3 {[%clk 0:02:32]}  Rbc8 {[%clk 0:02:04]} 25. Rd3 {[%clk 0:02:31]}  c5 {[%clk 0:01:59]} 26. d5 {[%clk 0:02:31]}  exd5 {[%clk 0:01:59]} 27. Bxf6 {[%clk 0:02:30]}  Bxf6 {[%clk 0:01:58]} 28. Rxd5 {[%clk 0:02:31]}  Re8 {[%clk 0:01:54]} 29. Rfd1 {[%clk 0:02:27]}  Rb8 {[%clk 0:01:52]} 30. Rd7 {[%clk 0:02:26]}  Rb2 {[%clk 0:01:51]} 31. Qd3 {[%clk 0:02:16]}  Qxa2 {[%clk 0:01:50]} 32. Rf1 {[%clk 0:02:13]}  Bd4 {[%clk 0:01:47]} 33. Bd5 {[%clk 0:02:03]}  Rxf2+ {[%clk 0:01:45]} 34. Kh1 {[%clk 0:01:58]}  Rh2# {[%clk 0:01:43]} 0-1


[Site "https://www.chess.com"]

[Event "Titled Tuesday Blitz November 01 Late 2022"]
[White "Bayo Milagro, Alvaro"]
[Black "Krzyzanowski, Marcin"]
[WhiteFideId "22275240"]
[BlackFideId "1132199"]
[WhiteElo "2270"]
[BlackElo "2435"]
[Result "0-1"]
[Round "11"]
[TimeControl "180+1"]
[Date "2022.11.01"]
[WhiteClock "0:01:44"]
[BlackClock "0:01:50"]

1. e4 {[%clk 0:03:00]}  g6 {[%clk 0:02:59]} 2. d4 {[%clk 0:03:00]}  Bg7 {[%clk 0:02:59]} 3. Nc3 {[%clk 0:03:00]}  c6 {[%clk 0:03:00]} 4. f4 {[%clk 0:03:00]}  d5 {[%clk 0:03:00]} 5. e5 {[%clk 0:03:00]}  Qb6 {[%clk 0:03:00]} 6. Nf3 {[%clk 0:02:57]}  Bg4 {[%clk 0:03:01]} 7. Be2 {[%clk 0:02:57]}  Nh6 {[%clk 0:03:00]} 8. Na4 {[%clk 0:02:55]}  Qa5+ {[%clk 0:03:00]} 9. c3 {[%clk 0:02:56]}  Qc7 {[%clk 0:03:00]} 10. h3 {[%clk 0:02:53]}  Bxf3 {[%clk 0:03:00]} 11. Bxf3 {[%clk 0:02:54]}  f6 {[%clk 0:02:56]} 12. O-O {[%clk 0:02:51]}  Nd7 {[%clk 0:02:55]} 13. b4 {[%clk 0:02:51]}  O-O {[%clk 0:02:53]} 14. e6 {[%clk 0:02:45]}  Nb6 {[%clk 0:02:53]} 15. Nc5 {[%clk 0:02:45]}  Nf5 {[%clk 0:02:52]} 16. g4 {[%clk 0:02:42]}  Nd6 {[%clk 0:02:52]} 17. Re1 {[%clk 0:02:39]}  f5 {[%clk 0:02:52]} 18. g5 {[%clk 0:02:38]}  Ne4 {[%clk 0:02:48]} 19. Qd3 {[%clk 0:02:34]}  Rfd8 {[%clk 0:02:31]} 20. h4 {[%clk 0:02:31]}  a5 {[%clk 0:02:29]} 21. h5 {[%clk 0:02:29]}  axb4 {[%clk 0:02:28]} 22. cxb4 {[%clk 0:02:30]}  Nc4 {[%clk 0:02:21]} 23. Nxe4 {[%clk 0:02:22]}  fxe4 {[%clk 0:02:20]} 24. Bxe4 {[%clk 0:02:21]}  dxe4 {[%clk 0:02:20]} 25. Qxc4 {[%clk 0:02:20]}  Bxd4+ {[%clk 0:02:21]} 26. Be3 {[%clk 0:02:20]}  Bxa1 {[%clk 0:02:22]} 27. Rxa1 {[%clk 0:02:20]}  Qd6 {[%clk 0:02:14]} 28. hxg6 {[%clk 0:02:20]}  hxg6 {[%clk 0:02:13]} 29. Qxe4 {[%clk 0:02:20]}  Qd3 {[%clk 0:02:14]} 30. Qxd3 {[%clk 0:02:12]}  Rxd3 {[%clk 0:02:15]} 31. Bc5 {[%clk 0:02:12]}  Rad8 {[%clk 0:01:58]} 32. Bxe7 {[%clk 0:02:09]}  Rd1+ {[%clk 0:01:59]} 33. Rxd1 {[%clk 0:02:09]}  Rxd1+ {[%clk 0:01:59]} 34. Kf2 {[%clk 0:02:09]}  Rd2+ {[%clk 0:01:58]} 35. Ke3 {[%clk 0:02:08]}  Rxa2 {[%clk 0:01:59]} 36. Bc5 {[%clk 0:02:04]}  Ra1 {[%clk 0:01:55]} 37. e7 {[%clk 0:02:03]}  Re1+ {[%clk 0:01:53]} 38. Kf2 {[%clk 0:02:03]}  Re6 {[%clk 0:01:53]} 39. Kf3 {[%clk 0:02:03]}  Kf7 {[%clk 0:01:53]} 40. Kg4 {[%clk 0:02:02]}  b6 {[%clk 0:01:54]} 41. Bxb6 {[%clk 0:02:01]}  Rxe7 {[%clk 0:01:54]} 42. Bc5 {[%clk 0:01:57]}  Re4 {[%clk 0:01:55]} 43. Kf3 {[%clk 0:01:57]}  Rc4 {[%clk 0:01:55]} 44. Kg4 {[%clk 0:01:50]}  Ke6 {[%clk 0:01:55]} 45. Bf8 {[%clk 0:01:50]}  Rc1 {[%clk 0:01:54]} 46. f5+ {[%clk 0:01:48]}  gxf5+ {[%clk 0:01:54]} 47. Kh5 {[%clk 0:01:47]}  f4 {[%clk 0:01:50]} 48. Bc5 {[%clk 0:01:46]}  Kf5 {[%clk 0:01:50]} 49. Kh6 {[%clk 0:01:44]}  Rh1+ {[%clk 0:01:50]} 0-1


[Site "https://www.chess.com"]